Cogmind - Beta 16 @@@ ROGUE MODE // 2025.11.26 @ 13:12:41 Player: Infomantis Result: Destroyed by LS-R62(R) with Subdweller Laser Performance ------------- Evolutions (0) 0 Regions Visited (3) 600 Robots Destroyed (18) 90 Value Destroyed (446) 446 Prototype IDs (12) 240 Alien Tech Used (0) 0 Bonus (-76) -76 TOTAL SCORE: 1300 Bonus ------- Follower Combat Kills 65 Friendly Fire -141 Cogmind --------- Core Integrity 0/250 Matter 284/300 Energy 190/200 System Corruption 0% Temperature Cool (6) Movement Treading (560) Ox4 Location -10/Subcaves Parts ------- > --- POWER (1) -------- Subdweller Power Source > --- PROPULSION (2) --- Spiked Treads Subdweller Monowheel > --- UTILITY (2) ------ Huge Storage Unit Seismic Detector > --- WEAPON (2) ------- Medium Laser Barrage Gun > --- INVENTORY (25) --- Ion Engine Subdweller Power Source Light Treads Light Treads Disposable Heat Sink Disposable Heat Sink Small Storage Unit Humpback Subdweller Optics Subdweller Optics Seismic Detector Scrap Shield Riot Gun Subdweller Laser Powered Cannon Subdweller Machine Gun Subdweller Machine Gun Grenade Launcher Subdweller Shrapnel Launcher Multitool Makeshift Spear Scrap Shield Fragment (46) Peak State ------------ > --- POWER ------------ Subdweller Power Source > --- PROPULSION ------- Spiked Treads Compact Wheel > --- UTILITY ---------- Disposable Heat Sink Huge Storage Unit > --- WEAPON ----------- Medium Laser Makeshift Spear > --- INVENTORY -------- Ion Engine Subdweller Power Source Light Treads Light Treads Subdweller Monowheel Small Storage Unit Humpback Subdweller Optics Subdweller Optics Seismic Detector Seismic Detector Scrap Shield Riot Gun Subdweller Laser Powered Cannon Subdweller Machine Gun Subdweller Machine Gun Barrage Gun Grenade Launcher Subdweller Shrapnel Launcher Multitool Scrap Shield Fragment [Rating: 18] Favorites ----------- Power Ion Engine Engine Ion Engine Propulsion Light Treads Treads Light Treads Wheel Compact Wheel Utility Seismic Detector Device Seismic Detector Storage Huge Storage Unit Weapon Medium Laser Energy Gun Medium Laser Ballistic Gun Barrage Gun Launcher Grenade Launcher Piercing Weapon Makeshift Spear Build | -11 -10 -10 -10 ------- Run | Yrd Mat Min Sub Slots Evolved . | . . . . Power . | . . . . Propulsion . | . . . . Utility . | . . . . Weapon . | . . . . Parts Attached 21 | 7 . 3 11 Power 4 | 1 . 1 2 Engine 4 | 1 . 1 2 Core . | . . . . Reactor . | . . . . Propulsion 5 | 2 . . 3 Treads 3 | 2 . . 1 Leg . | . . . . Wheel 2 | . . . 2 Hover . | . . . . Flight . | . . . . Utility 5 | 2 . . 3 Device 3 | 1 . . 2 Storage 2 | 1 . . 1 Processor . | . . . . Hackware . | . . . . Protection . | . . . . Artifact . | . . . . Weapon 7 | 2 . 2 3 Energy Gun 3 | 2 . 1 . Energy Cannon . | . . . . Ballistic Gun 2 | . . . 2 Ballistic Cannon . | . . . . Launcher 1 | . . 1 . Special Weapon . | . . . . Impact Weapon . | . . . . Slashing Weapon . | . . . . Piercing Weapon 1 | . . . 1 Special Melee Weapon . | . . . . Unidentified Prototypes . | . . . . Parts Lost 3 | . . 1 2 Power . | . . . . Propulsion 1 | . . . 1 Utility 1 | . . . 1 Weapon 1 | . . 1 . Highest Loss Streak 1 | . . 1 1 To Critical Strikes . | . . . . Average Backups 12 | 4 8 7 14 Power 1 | 1 1 1 1 Propulsion 1 | . 1 1 1 Utility 3 | 1 3 3 4 Weapon 5 | 1 2 2 6 Tool/Special . | . . . . Unused Backups 19 | . 2 . 17 Power 3 | . 1 . 2 Propulsion . | . . . . Utility 7 | . 1 . 6 Weapon 8 | . . . 8 Tool/Special 1 | . . . 1 Average Slot Usage (%) 99 | . 100 100 99 Engine 14 | . 14 14 14 Treads 19 | . 28 28 18 Wheel 8 | . . . 9 Device 13 | . 14 14 13 Storage 14 | . 14 14 14 Energy Gun 19 | . 28 28 18 Ballistic Gun 6 | . . . 8 Piercing Weapon 1 | . . . 1 Peak Build Rating 18 | 8 8 7 18 Average Rating 11 | 5 7 7 12 On Entrance 5 | . 8 7 7 Avg Prop Armor Cover (%) 14 | . . . 14 Naked Turns . | . . . . Heaviest Build 91 | 15 15 15 91 Greatest Support 40 | 40 40 40 40 Greatest Overweight (x) 5 | . . . 5 Average Overweight (x) 2 | . . . 3 Largest Inventory Capacity 25 | 8 8 8 25 Average Capacity 17 | 7 8 8 19 Most Carried 25 | 8 8 8 25 Average Carried 14 | 4 7 7 16 Final Capacity 25 | 8 8 8 25 Final Carried 25 | 8 8 7 25 Class Distribution -------------------- 100% | Mutant Dominant Class ---------------- Mutant | -10/Materials Mutant | -10/Mines Mutant | -10/Subcaves Resources | -11 -10 -10 -10 ----------- Run | Yrd Mat Min Sub Matter Collected 614 | 270 . 40 304 Remotely . | . . . . Salvage Created 555 | 90 49 96 320 Parts 47 | 17 7 3 20 Haulers Intercepted . | . . . . Recyclers Shooed . | . . . . Parts Field Recycled . | . . . . Retrieved Matter . | . . . . Parts Self-Destructed 3 | . . . 3 Prevented . | . . . . Parts Restored . | . . . . Kills | -11 -10 -10 -10 ------- Run | Yrd Mat Min Sub Combat Hostiles Destroyed 14 | . 3 4 7 Guns 13 | . 3 3 7 AOE 1 | . . 1 . Classes Destroyed 5 | 1 1 1 2 Tunneler 4 | 4 . . . Swarmer 5 | . 3 2 . Grunt 3 | . . 2 1 Artisan 1 | . . . 1 Subdweller 6 | . . . 6 Best Kill Streak 4 | 3 3 4 2 Combat Bots Only 4 | . 3 4 2 Max Kills in Single Turn 2 | 2 1 1 1 Gunslinging . | . . . . Exploded 1 | . . 1 . Melee . | . . . . Uniques/NPCs Destroyed . | . . . . Combat | -11 -10 -10 -10 -------- Run | Yrd Mat Min Sub Hostile Shots Fired 83 | . 9 24 50 Missed 24 | . 3 6 15 Hits 59 | . 6 18 35 Projectile 59 | . 6 18 35 Critical Strikes 2 | . . . 2 Damage Taken 1007 | . 52 224 731 Core 253 | . . 53 200 Absorbed by Shields . | . . . . Core Remaining (%) 100 | 100 . . . Volleys Fired 58 | 8 4 9 37 Largest 2 | 2 2 2 2 Hottest 100 | 100 100 100 100 Shots Fired 114 | 16 8 17 73 Gun 113 | 16 8 16 73 Cannon . | . . . . Launcher 1 | . . 1 . Special . | . . . . Kinetic 30 | . . . 30 Thermal 83 | 16 8 16 43 Explosive 1 | . . 1 . Electromagnetic . | . . . . Robot Hit Streak 24 | 6 9 7 24 Robot Miss Streak 3 | 3 1 3 3 Penetration Max . | . . . . Secondary Targets 3 | . 1 1 1 Max Gunslinging Chain 1 | . 1 1 1 Shots Hit Robots 91 | 10 6 11 64 Core Hits 32 | 5 3 7 17 Critical Kills 1 | . . . 1 Critical Parts Destroyed . | . . . . Critical Strikes 7 | . . 1 6 Burn 6 | . . 1 5 Destroy 1 | . . . 1 Melee Attacks 25 | . . . 25 Impact . | . . . . Slashing . | . . . . Piercing 25 | . . . 25 Sneak Attacks 2 | . . . 2 Combat Hostiles . | . . . . Follow-up Attacks . | . . . . Damage Inflicted 1375 | 147 74 164 990 Guns 1241 | 147 74 151 869 Cannons . | . . . . Explosions 13 | . . 13 . Melee 121 | . . . 121 Ramming . | . . . . Kinetic 471 | . . . 471 Thermal 770 | 147 74 151 398 Explosive 13 | . . 13 . Electromagnetic . | . . . . Impact . | . . . . Slashing . | . . . . Piercing 121 | . . . 121 Highest Corruption . | . . . . Average Corruption . | . . . . Corruption Purged . | . . . . Corruption Blocked . | . . . . Overload Shots . | . . . . Overflow Damage 41 | . . . 41 Projectiles . | . . . . Explosions . | . . . . Melee 41 | . . . 41 Knockbacks . | . . . . Impact . | . . . . Kinetic . | . . . . Secondary . | . . . . Self-Inflicted Damage . | . . . . Shots . | . . . . Rammed . | . . . . Targets Rammed . | . . . . Kicked . | . . . . Crushed . | . . . . Highest Temperature 298 | 156 156 246 298 Average Temperature 105 | 54 79 125 166 Received Heat Transfer 590 | . . 105 485 Effects 1 | . . 1 . Energy Bleed 1 | . . 1 . Siege Activations . | . . . . Martial Activations . | . . . . Shielding Activations . | . . . . Robots Disrupted . | . . . . Combat Hostiles . | . . . . Robots Corrupted . | . . . . Combat Hostiles . | . . . . Parts Fried . | . . . . Impact Corruptions . | . . . . Robots Melted . | . . . . Combat Hostiles . | . . . . Parts Melted 7 | . . 3 4 Heat Transferred 2738 | 444 222 518 1554 Parts Sabotaged . | . . . . Parts Stolen . | . . . . Parts Stripped . | . . . . Power Chain Reactions . | . . . . Alert | -11 -10 -10 -10 ------- Run | Yrd Mat Min Sub Maximum Alert Level . | . . . . Low Security (%) 100 | 100 100 100 . Level 1 . | . . . . Level 2 . | . . . . Level 3 . | . . . . Level 4 . | . . . . Level 5 . | . . . . High Security . | . . . . Max Security . | . . . . Peak Influence 97 | 10 60 97 . Initial 19 | . . 19 . Average 17 | . 8 33 . Influence Increases 260 | 20 70 108 62 Destroy 0b10 Robot/C 180 | . 60 80 40 Destroy 0b10 Robot/NC 20 | 20 . . . Destroy Leader 50 | . 10 20 20 Allied During Kill 2 | . . . 2 Destroy Structure 8 | . . 8 . Influence Decreases 260 | 20 20 158 62 Entered New Map 31 | . . 31 . Time Decay 219 | 20 20 117 62 Lost Part 10 | . . 10 . Squads Dispatched 1 | . 1 . . Investigation 1 | . 1 . . Extermination . | . . . . Reinforcement . | . . . . Assault . | . . . . Garrison . | . . . . Intercept . | . . . . Searches Triggered . | . . . . Construction Impeded . | . . . . Haulers Reinforced . | . . . . Active Scanning Responses . | . . . . Cargo Convoy Interrupts . | . . . . Stealth | -11 -10 -10 -10 --------- Run | Yrd Mat Min Sub Distress Signals 1 | . . 1 . Communications Jammed . | . . . . Distress Signals . | . . . . Times Spotted 20 | . 3 5 12 Peak Tracking Total 3 | . 3 3 2 Tactical Retreats . | . . . . Traps | -11 -10 -10 -10 ------- Run | Yrd Mat Min Sub Traps Triggered 1 | . . . 1 Indirectly . | . . . . Trap Hack Attempts . | . . . . Triggered . | . . . . Disarmed . | . . . . Reprogrammed . | . . . . Reused . | . . . . Traps Extracted . | . . . . Installed . | . . . . Triggered . | . . . . Machines | -11 -10 -10 -10 ---------- Run | Yrd Mat Min Sub Machines Disabled 1 | . . . 1 Max in Single Turn 1 | . . . 1 Machines Repaired . | . . . . Machines Dismantled . | . . . . Machines Sabotaged . | . . . . Overloaded Fab Kills . | . . . . Hacking | -11 -10 -10 -10 --------- Run | Yrd Mat Min Sub Machines Accessed 2 | . 1 . 1 Terminals 1 | . 1 . . Fabricators . | . . . . Repair Stations . | . . . . Recycling Units . | . . . . Scanalyzers . | . . . . Garrison Access . | . . . . Total Hacks 4 | . 3 . 1 Successful 1 | . . . 1 Failed 3 | . 3 . . Catastrophic 1 | . 1 . . Database Lockouts . | . . . . Manual 3 | . 3 . . Terminals 3 | . 3 . . Fabricators . | . . . . Repair Stations . | . . . . Recycling Units . | . . . . Scanalyzers . | . . . . Garrison Access . | . . . . Terminal Hacks 1 | . . . 1 Proto ID Catalog 1 | . . . 1 Fabricator Hacks . | . . . . Repair Station Hacks . | . . . . Recycling Unit Hacks . | . . . . Scanalyzer . | . . . . Garrison Access Hacks . | . . . . Unauthorized Hacks . | . . . . Terminals . | . . . . Fabricators . | . . . . Repair Stations . | . . . . Recycling Units . | . . . . Scanalyzers . | . . . . Garrison Access . | . . . . Data Cores Recovered . | . . . . Used . | . . . . Hacking Detections 1 | . 1 . . Full Trace Events 1 | . 1 . . Feedback Events . | . . . . Feedback Blocked . | . . . . Robot Schematics Acquired . | . . . . Robots Built . | . . . . Authchips . | . . . . Time . | . . . . Total Robot Build Rating . | . . . . Part Schematics Acquired . | . . . . Parts Built . | . . . . Authchips . | . . . . Time . | . . . . Total Part Build Rating . | . . . . Part Studies Acquired . | . . . . Parts Repaired . | . . . . Time . | . . . . Parts Recycled . | . . . . Recycled Matter . | . . . . Retrieved Matter . | . . . . Retrieved Components . | . . . . Parts Scanalyzed . | . . . . Part Schematics Acquired . | . . . . Parts Damaged . | . . . . Bothacking | -11 -10 -10 -10 ------------ Run | Yrd Mat Min Sub Used RIF Installer . | . . . . Robots Hacked . | . . . . Non-combat . | . . . . Combat . | . . . . Robot Hacks Applied . | . . . . Relay Couplers Released . | . . . . Fabnet Peak Effective % . | . . . . Robots Rewired . | . . . . Allies Hacked . | . . . . Hacks Repelled . | . . . . Allies | -11 -10 -10 -10 -------- Run | Yrd Mat Min Sub Total Allies 3 | . . 3 . Largest Group 3 | . . 3 3 Highest-Rated Group 40 | . . 40 40 Highest-Rated Ally 16 | . . 16 16 Total Orders . | . . . . Ally Attacks 19 | . . . 19 Total Damage 215 | . . . 215 Kills 2 | . . . 2 Allies Corrupted . | . . . . Allies Melted . | . . . . Intel | -11 -10 -10 -10 ------- Run | Yrd Mat Min Sub Active Infowar (turns) 3425 | 65 232 358 2770 Seismic 3425 | 65 232 358 2770 Robot Analysis Total . | . . . . Derelict Logs Recovered 2 | . . . 2 Drone Launches . | . . . . Drone Recoveries . | . . . . Exploration | -11 -10 -10 -10 ------------- Run | Yrd Mat Min Sub Turns Passed 3894 | 186 232 358 3118 Spaces Moved 2109 | 91 136 203 1679 Core 3 | 3 . . . Treads 982 | 88 136 203 555 Legs . | . . . . Wheels 1124 | . . . 1124 Hover . | . . . . Flight . | . . . . Fastest Speed 50 | 50 160 160 150 Average Speed 167 | 156 160 160 169 Slowest Speed 320 | 160 160 160 320 Overloaded Moves . | . . . . Propulsion Burnouts . | . . . . Robots Hopped . | . . . . Potential Cave-ins . | . . . . Cave-ins Triggered . | . . . . Exploration Rate (%) 31 | 5 18 33 70 Regions Visited 3 Branch Regions 2 Pre-discovered Areas . | . . . . Known Exits Taken . | . . . . Unknown Exits Taken 3 | 1 1 1 . Scrap Searched 7 | . . . 7 Spaces Dug . | . . . . Terrain Destroyed 8 | . . 8 . Melee . | . . . . Projectile . | . . . . AOE 8 | . . 8 . Terrain Rammed . | . . . . Walls Destroyed . | . . . . Machines Disabled . | . . . . Actions | -11 -10 -10 -10 --------- Run | Yrd Mat Min Sub Total 2328 | 115 144 219 1850 Wait 71 | 2 1 4 64 Move 2106 | 90 135 202 1679 Hop . | . . . . Pick Up 28 | 8 2 . 18 Fast Attach 9 | 7 . . 2 Attach 2 | . . 1 1 Detach . | . . . . Swap 20 | . . 2 18 Drop 9 | . 2 1 6 Fire 58 | 8 4 9 37 Melee 25 | . . . 25 Ram . | . . . . Kick . | . . . . Crush . | . . . . Escape Stasis . | . . . . Rewire . | . . . . Trap . | . . . . Miscellaneous . | . . . . Route ------- -11/Scrapyard -10/Materials -10/Mines (discovered 2 exits: [*Exi] / *Sub) -10/Subcaves (discovered 2 exits: *Mat x2) History --------- Turn | Location | Event 8 | -11/Scrapyard | Discovered new exit (range 15) 187 | -11/Scrapyard | Entered Materials 293 | -10/Materials | Discovered new exit (range 10) 307 | -10/Materials | Build established: Mutant 419 | -10/Materials | Entered Mines 497 | -10/Mines | Assembled infested the area 561 | -10/Mines | Assisted by bots powering up and referring to "LRC-V3" 718 | -10/Mines | Discovered new exit (range 10) 749 | -10/Mines | Discovered new exit (range 5) 777 | -10/Mines | Entered Subcaves 777 | -10/Subcaves | Accompanied by 3 allies 843 | -10/Subcaves | Shifting Twisted Machinery released Sub. Optics 845 | -10/Subcaves | Shifting Twisted Machinery released Mak. Spear 1110 | -10/Subcaves | Discovered new exit (range 9) 1188 | -10/Subcaves | A swath of the cavern ceiling suddenly collapsed 1749 | -10/Subcaves | Visited 4L-MR0's lab 1769 | -10/Subcaves | Found Powered Cannon 1995 | -10/Subcaves | Identified exit to Materials 3036 | -10/Subcaves | Core integrity fell below 50% 3194 | -10/Subcaves | Disturbed a concealed Subdweller 3375 | -10/Subcaves | Learned location of 1 exit from Materials 3676 | -10/Subcaves | A swath of the cavern ceiling suddenly collapsed 3706 | -10/Subcaves | Shifting Twisted Machinery released Piercing Trap 3757 | -10/Subcaves | Shifting Twisted Machinery released Sub. Optics 3801 | -10/Subcaves | Core integrity fell below 20% 3895 | -10/Subcaves | Destroyed by LS-R62(R) with Subdweller Laser Last Messages --------------- Data stored: Materials exits (x1). 03529_ VX-NL7(R): "SUBHATE!" 03541_ Sub. Monowheel melted. 03541_ VX-NL7(R) destroyed. 03544_ Acquired 32 matter. 03546_ Acquired 9 matter. A swath of the cavern ceiling suddenly collapses. Piercing Trap falls loose from the Twisted Machinery. Sub. Optics falls loose from the Twisted Machinery. 03800_ KO-OG2(R) suffers critical hit (Burn). 03805_ KO-OG2(R) destroyed. 03811_ Com. Wheel destroyed. 03814_ I0-EQS(R) suffers critical hit (Destroy). 03814_ Sub. Monowheel melted. 03814_ Sub. Power Source melted. 03814_ I0-EQS(R) destroyed. 03818_ Acquired 31 matter. 03820_ Acquired 39 matter. 03824_ Acquired Disposable Heat Sink. 03854_ LS-R62(R): "ECOKILL!" Map ----- +----------------------------------------------------+ | ?????????????????????????????????????????????????? | | ?????????????????????????????????????????????????? | | ??????????????????????????#####??????????????????? | | ????????????????????????### ##?????????????????? | | ????????????????????##### ##????????????????? | | ???????????????????## ##???????????????? | | ???????????????????# #???????????????? | | ???????????????????# ##???????????????? | | ???????????????????# ####????????????????" | | ??????????????????## ##?????????????#####"" | | ??????????????##### #????????????###%&"""" | | ?????????????## #????????#####" !"""# | | ????????????## ##??????###"#"# ##### | | ????????????# ##?????###"##"# !##????? | | ????????????# ########??#;"#""#"""#?????? | | ????????????# ! ## #??## ###;#""""#####?????? | | ???????????## &### ##?# ##"#"##?????????? | | ???????????# #?### #?# "### #?????????? | | ???????????# #???####?## #### ##????????? | | ???????????# ###??????## ## ##"""#????????? | | ???????????## #?????## #######"##????????? | | ???????????## ""###???# ##??## # #????????? | | ???????????# """ ###?## #### #????????? | | ???????????# """ #?## ### ##????????? | | ???????????# """ #### ####"" #????????? | | ???????????# """ ###@R ##?# " ##????????? | | ???????????## ## "" #### ##??# & #?????????? | | ????????????#####" " ### ##??## ##????????? | | ???????????????## "" """ # ##?## #????????? | | ??????????????## """"""" ## ### #????????? | | ??????????????# """"" # #????????? | | ??????????????## """" #????????? | | ???????????????### "" ##????????? | | ?????????????????## """ "# #?????????? | | ??????????????????# """"" #### ##?????????? | | ??????????????????# "" ### #??????????? | | ??????????????????# " ## ###??????????? | | ??????????????????## #### ##????????????? | | ?????????????????### #??####?????????????? | | ?????????????????# ###" ##?????###???????????? | | ???????????????### ###% ##?????? ##??????????? | | ???????????????# [ ##????? ###????????? | | ?????????????### ##????? #????????? | | ?????????????# #????? #????????? | | ?????????????# #?????? #????????? | | ???????????### ### ##?????? #????????? | | ???????????# #?####???????? ##???????? | | ???????????## ######???????? #????#### | | ???????????## ## ##???????# #????# # | | ???????????# ######### #????#[!% | +----------------------------------------------------+ Best States ------------- Heat Dissipation 25 Coolant Potential 50 Energy Generation 15 Energy Capacity 250 Matter Stores 300 Matter Capacity 300 Sight Range 16 Terrain Scan Density 10 Evasion (%) 40 Recoil Reduction 2 Item Schematics ----------------- None Robot Schematics ------------------ None Fabricated ------------ Nothing Repaired ---------- Nothing Studied --------- None Alien Tech Used ----------------- None Achievements -------------- None Challenges ------------ None Game ------ Seed TripodPrecisionSlayer Manual? 0 Play Time 00:14:48 Cumulative 607.0 hours Start 2025.11.26 @ 12:52:27 End 2025.11.26 @ 13:12:41 Sessions 1 Manual Loads 0 Difficulty Rogue Special Mode None Game No. 344 Rogue 319 Adventurer 7 Explorer 18 Win Type - Total 50 Types 31/1/8/2/1/1/1/3/0/2 Lore% 95 Gallery% 89 Achievement% 61 Wizard Run 0 Options --------- Layout 0 ASCII 0 Keyboard 0 Movement Numpad Keybinds 0 Fullscreen 1 Font 12/Smallcaps Map View 83x54 Zoom Use 0% Tactical HUD 1 Map Filters NONE Filters NONE Steam 1 RUN: d89fa992-dcb7-48cf-9dc1-2f4bdec4cded